[Event "Early-Titled-Tuesday-Blitz-September-12-2023"]
[Site "Chess.com"]
[Date "2023.09.12"]
[Round "1"]
[White "Zurability"]
[Black "AttilaTurzo"]
[Result "0-1"]
[WhiteElo "2800"]
[BlackElo "2478"]
[TimeControl "180+1"]
[EndTime "8:07:22 PDT"]
[Termination "AttilaTurzo won on time"]

1. Nf3 {[%clk 0:02:57]} 1... c5 {[%clk 0:02:58.8]} 2. g3 {[%clk 0:02:53.9]} 2...
Nc6 {[%clk 0:02:57.1]} 3. Bg2 {[%clk 0:02:54.4]} 3... g6 {[%clk 0:02:57.3]} 4.
O-O {[%clk 0:02:54.2]} 4... Bg7 {[%clk 0:02:58]} 5. e4 {[%clk 0:02:51]} 5... e5
{[%clk 0:02:57.5]} 6. Nc3 {[%clk 0:02:50.6]} 6... Nge7 {[%clk 0:02:58.1]} 7. d3
{[%clk 0:02:50]} 7... O-O {[%clk 0:02:53.8]} 8. Nd2 {[%clk 0:02:48.8]} 8... d6
{[%clk 0:02:51.7]} 9. Nc4 {[%clk 0:02:48.9]} 9... Be6 {[%clk 0:02:48.5]} 10. Ne3
{[%clk 0:02:48.4]} 10... f5 {[%clk 0:02:47.2]} 11. Ned5 {[%clk 0:02:40.5]} 11...
Qd7 {[%clk 0:02:36.5]} 12. f4 {[%clk 0:02:31.8]} 12... Rae8 {[%clk 0:02:27.3]}
13. fxe5 {[%clk 0:02:28.9]} 13... Nxe5 {[%clk 0:02:23.3]} 14. Bg5 {[%clk
0:02:16.4]} 14... Nxd5 {[%clk 0:02:18.6]} 15. exd5 {[%clk 0:02:03.2]} 15... Bf7
{[%clk 0:02:16]} 16. Qd2 {[%clk 0:02:03.7]} 16... Ng4 {[%clk 0:02:13.3]} 17. h3
{[%clk 0:01:52.8]} 17... Bd4+ {[%clk 0:02:05.6]} 18. Kh1 {[%clk 0:01:52.9]}
18... Ne3 {[%clk 0:02:02.8]} 19. Bxe3 {[%clk 0:01:37.6]} 19... Bxe3 {[%clk
0:02:01.1]} 20. Qd1 {[%clk 0:01:37.6]} 20... g5 {[%clk 0:01:56]} 21. Qf3 {[%clk
0:01:34.1]} 21... Bg6 {[%clk 0:01:50.1]} 22. Rae1 {[%clk 0:01:32.8]} 22... f4
{[%clk 0:01:50.4]} 23. gxf4 {[%clk 0:01:28.3]} 23... Rxf4 {[%clk 0:01:43.1]} 24.
Qg3 {[%clk 0:01:26.2]} 24... Rxf1+ {[%clk 0:01:41.2]} 25. Rxf1 {[%clk
0:01:23.1]} 25... Bf4 {[%clk 0:01:41]} 26. Qf2 {[%clk 0:01:21.8]} 26... Qg7
{[%clk 0:01:30.7]} 27. Ne2 {[%clk 0:01:14.2]} 27... Be3 {[%clk 0:01:17.8]} 28.
Qg3 {[%clk 0:00:55.9]} 28... Qxb2 {[%clk 0:01:13]} 29. Qxd6 {[%clk 0:00:53.8]}
29... Qxc2 {[%clk 0:01:13.4]} 30. Ng3 {[%clk 0:00:47.3]} 30... Qxd3 {[%clk
0:01:13.2]} 31. Qf6 {[%clk 0:00:09.5]} 31... Bf4 {[%clk 0:00:56.8]} 32. Rxf4
{[%clk 0:00:09.5]} 32... gxf4 {[%clk 0:00:56.7]} 33. Qxf4 {[%clk 0:00:10.4]}
33... Qe3 {[%clk 0:00:51.2]} 34. Qg4 {[%clk 0:00:07.1]} 34... Qe1+ {[%clk
0:00:45.5]} 35. Kh2 {[%clk 0:00:07.1]} 35... Qe5 {[%clk 0:00:45.2]} 36. h4
{[%clk 0:00:07]} 36... Kh8 {[%clk 0:00:41.9]} 37. h5 {[%clk 0:00:06.2]} 37...
Bd3 {[%clk 0:00:42.2]} 38. h6 {[%clk 0:00:05.1]} 38... Rg8 {[%clk 0:00:38.5]}
39. Qh4 {[%clk 0:00:05.7]} 39... Qg5 {[%clk 0:00:29.8]} 40. Qh3 {[%clk
0:00:05.7]} 40... Qg4 {[%clk 0:00:27.2]} 41. Qxg4 {[%clk 0:00:02.6]} 41... Rxg4
{[%clk 0:00:28.1]} 42. Bh3 {[%clk 0:00:02.2]} 42... Rd4 {[%clk 0:00:26.4]} 43.
Be6 {[%clk 0:00:01.3]} 43... c4 {[%clk 0:00:19.9]} 0-1

[Event "Early-Titled-Tuesday-Blitz-September-12-2023"]
[Site "Chess.com"]
[Date "2023.09.12"]
[Round "1"]
[White "biostatistician"]
[Black "giomar27"]
[Result "1-0"]
[WhiteElo "2586"]
[BlackElo "2271"]
[TimeControl "180+1"]
[EndTime "8:07:22 PDT"]
[Termination "biostatistician won by resignation"]

1. d4 {[%clk 0:02:58.9]} 1... Nf6 {[%clk 0:02:59.1]} 2. Nf3 {[%clk 0:02:58.6]}
2... c5 {[%clk 0:02:58]} 3. d5 {[%clk 0:02:58.5]} 3... g6 {[%clk 0:02:57.9]} 4.
c4 {[%clk 0:02:59.4]} 4... b5 {[%clk 0:02:56]} 5. cxb5 {[%clk 0:02:58.9]} 5...
a6 {[%clk 0:02:55.8]} 6. b6 {[%clk 0:02:58.7]} 6... d6 {[%clk 0:02:55.3]} 7. Nc3
{[%clk 0:02:58.1]} 7... Nbd7 {[%clk 0:02:55.5]} 8. e4 {[%clk 0:02:58.2]} 8...
Rb8 {[%clk 0:02:55.3]} 9. Nd2 {[%clk 0:02:56]} 9... Bg7 {[%clk 0:02:49.5]} 10.
a4 {[%clk 0:02:55.1]} 10... Rxb6 {[%clk 0:02:48.7]} 11. a5 {[%clk 0:02:54.2]}
11... Rb4 {[%clk 0:02:46.7]} 12. Bd3 {[%clk 0:02:53.7]} 12... O-O {[%clk
0:02:37.9]} 13. O-O {[%clk 0:02:53.5]} 13... e6 {[%clk 0:02:14.3]} 14. Nc4
{[%clk 0:02:48.2]} 14... Nxe4 {[%clk 0:01:44.1]} 15. Nxe4 {[%clk 0:02:03.8]}
15... exd5 {[%clk 0:01:44.2]} 16. Nexd6 {[%clk 0:02:04]} 16... dxc4 {[%clk
0:01:43.4]} 17. Bxc4 {[%clk 0:02:04.9]} 17... Ne5 {[%clk 0:01:32]} 18. Ba2
{[%clk 0:01:55.8]} 18... Rd4 {[%clk 0:01:28.4]} 19. Nxf7 {[%clk 0:01:38.9]}
19... Nxf7 {[%clk 0:01:19.5]} 20. Qf3 {[%clk 0:01:38.1]} 20... Qf6 {[%clk
0:01:09.3]} 21. Qc3 {[%clk 0:01:20.2]} 21... Be6 {[%clk 0:00:51.8]} 22. Be3
{[%clk 0:01:15.4]} 22... Bxa2 {[%clk 0:00:46.6]} 23. Rxa2 {[%clk 0:01:06.5]}
23... Rd5 {[%clk 0:00:37.8]} 24. Qc4 {[%clk 0:01:06.5]} 24... Qd6 {[%clk
0:00:29.9]} 25. b3 {[%clk 0:01:00.6]} 25... Bd4 {[%clk 0:00:28.6]} 26. Rd2
{[%clk 0:00:53.1]} 26... Ne5 {[%clk 0:00:24.7]} 27. Qe2 {[%clk 0:00:44]} 27...
Bxe3 {[%clk 0:00:23.8]} 28. Rxd5 {[%clk 0:00:43.9]} 28... Qxd5 {[%clk
0:00:18.4]} 29. Qxe3 {[%clk 0:00:42.2]} 29... Qd4 {[%clk 0:00:16.9]} 30. Qe2
{[%clk 0:00:39.1]} 30... Ng4 {[%clk 0:00:14]} 31. h3 {[%clk 0:00:37.9]} 31...
Nxf2 {[%clk 0:00:11.3]} 32. Rxf2 {[%clk 0:00:38.8]} 32... Qxf2+ {[%clk
0:00:06.1]} 33. Qxf2 {[%clk 0:00:39.7]} 33... Rxf2 {[%clk 0:00:06.2]} 34. Kxf2
{[%clk 0:00:40.6]} 34... Kf7 {[%clk 0:00:07]} 35. Ke3 {[%clk 0:00:40.9]} 35...
Ke6 {[%clk 0:00:07.6]} 36. Ke4 {[%clk 0:00:35.7]} 36... Kd6 {[%clk 0:00:07.6]}
37. g4 {[%clk 0:00:31.2]} 37... Kc6 {[%clk 0:00:04.8]} 38. Ke5 {[%clk
0:00:29.4]} 38... Kb5 {[%clk 0:00:04.9]} 39. Kd5 {[%clk 0:00:29.9]} 39... Kb4
{[%clk 0:00:02.1]} 40. g5 {[%clk 0:00:24.6]} 40... Kxb3 {[%clk 0:00:01.1]} 41.
Kxc5 {[%clk 0:00:24.7]} 41... Ka4 {[%clk 0:00:01.1]} 42. Kb6 {[%clk 0:00:25.1]}
42... Kb4 {[%clk 0:00:01.5]} 43. Kxa6 {[%clk 0:00:25.4]} 1-0

[Event "Early-Titled-Tuesday-Blitz-September-12-2023"]
[Site "Chess.com"]
[Date "2023.09.12"]
[Round "1"]
[White "LeoLV10"]
[Black "Sanan_Sjugirov"]
[Result "0-1"]
[WhiteElo "2504"]
[BlackElo "2912"]
[TimeControl "180+1"]
[EndTime "8:07:25 PDT"]
[Termination "Sanan_Sjugirov won by checkmate"]

1. e4 {[%clk 0:02:56.1]} 1... c5 {[%clk 0:02:59.9]} 2. Nf3 {[%clk 0:02:55.8]}
2... d6 {[%clk 0:03:00.3]} 3. d4 {[%clk 0:02:56.5]} 3... cxd4 {[%clk 0:03:01.2]}
4. Nxd4 {[%clk 0:02:57.2]} 4... Nf6 {[%clk 0:03:01.8]} 5. Nc3 {[%clk 0:02:57.8]}
5... a6 {[%clk 0:03:02.5]} 6. Bg5 {[%clk 0:02:58.5]} 6... Nbd7 {[%clk
0:03:00.8]} 7. Bc4 {[%clk 0:02:56.7]} 7... Qb6 {[%clk 0:02:50.9]} 8. Bb3 {[%clk
0:02:53.8]} 8... e6 {[%clk 0:02:50.9]} 9. Qd2 {[%clk 0:02:49]} 9... Be7 {[%clk
0:02:50.7]} 10. f4 {[%clk 0:02:42.6]} 10... Nc5 {[%clk 0:02:48.6]} 11. Bxf6
{[%clk 0:02:06.4]} 11... Bxf6 {[%clk 0:02:49.5]} 12. O-O-O {[%clk 0:02:06.6]}
12... Bd7 {[%clk 0:02:49.7]} 13. g4 {[%clk 0:02:04.9]} 13... h6 {[%clk 0:02:41]}
14. Kb1 {[%clk 0:02:04]} 14... O-O-O {[%clk 0:02:40.5]} 15. h4 {[%clk
0:01:58.5]} 15... g6 {[%clk 0:02:33.5]} 16. Nf3 {[%clk 0:01:51.2]} 16... Bc6
{[%clk 0:02:29.6]} 17. Rhe1 {[%clk 0:01:48.2]} 17... Kb8 {[%clk 0:02:24.3]} 18.
Qe3 {[%clk 0:01:43.1]} 18... Bxc3 {[%clk 0:02:18.1]} 19. Qxc3 {[%clk 0:01:36.9]}
19... Nxe4 {[%clk 0:02:16.8]} 20. Qg7 {[%clk 0:01:29]} 20... Nf2 {[%clk
0:02:12.9]} 21. Rxd6 {[%clk 0:01:20.4]} 21... Nxg4 {[%clk 0:01:34.8]} 22. Rxd8+
{[%clk 0:01:19.2]} 22... Rxd8 {[%clk 0:01:34.3]} 23. Ne5 {[%clk 0:01:15.1]}
23... Nxe5 {[%clk 0:01:06.3]} 24. fxe5 {[%clk 0:01:12.9]} 24... Qf2 {[%clk
0:00:57]} 25. Rc1 {[%clk 0:01:12.6]} 25... h5 {[%clk 0:00:51.1]} 26. a3 {[%clk
0:01:10.4]} 26... Qf4 {[%clk 0:00:49.5]} 27. Re1 {[%clk 0:01:05.7]} 27... Ka7
{[%clk 0:00:40.3]} 28. Rg1 {[%clk 0:00:45]} 28... a5 {[%clk 0:00:36.6]} 29. a4
{[%clk 0:00:31.3]} 29... Bd5 {[%clk 0:00:18.9]} 30. Bxd5 {[%clk 0:00:29.4]}
30... Rxd5 {[%clk 0:00:19.8]} 31. b3 {[%clk 0:00:29.8]} 31... Rxe5 {[%clk
0:00:13.4]} 32. Rd1 {[%clk 0:00:27.8]} 32... Rd5 {[%clk 0:00:11.5]} 33. Re1
{[%clk 0:00:24.2]} 33... Qxh4 {[%clk 0:00:10.1]} 34. Qc3 {[%clk 0:00:24.4]}
34... Qb4 {[%clk 0:00:09.8]} 35. Qe3+ {[%clk 0:00:24.4]} 35... Qd4 {[%clk
0:00:10.5]} 36. Qf3 {[%clk 0:00:20.9]} 36... h4 {[%clk 0:00:10.4]} 37. Qxf7
{[%clk 0:00:20.6]} 37... e5 {[%clk 0:00:04.7]} 38. Qxg6 {[%clk 0:00:19.9]} 38...
h3 {[%clk 0:00:04.8]} 39. Rh1 {[%clk 0:00:18.9]} 39... Qc3 {[%clk 0:00:04.9]}
40. Qf5 {[%clk 0:00:15.4]} 40... Rd2 {[%clk 0:00:05.1]} 41. Rxh3 {[%clk
0:00:14.8]} 41... Rd1+ {[%clk 0:00:05.4]} 42. Ka2 {[%clk 0:00:12.3]} 42... Ra1#
{[%clk 0:00:06.3]} 0-1

[Event "Early-Titled-Tuesday-Blitz-September-12-2023"]
[Site "Chess.com"]
[Date "2023.09.12"]
[Round "1"]
[White "PeshkaCh"]
[Black "elchacal664"]
[Result "1-0"]
[WhiteElo "2773"]
[BlackElo "2438"]
[TimeControl "180+1"]
[EndTime "8:07:25 PDT"]
[Termination "PeshkaCh won by checkmate"]

1. Nf3 {[%clk 0:03:00.9]} 1... c5 {[%clk 0:02:59.5]} 2. c4 {[%clk 0:02:57.4]}
2... g6 {[%clk 0:02:58.9]} 3. g3 {[%clk 0:02:56.8]} 3... Bg7 {[%clk 0:02:58.4]}
4. Bg2 {[%clk 0:02:57.4]} 4... Nf6 {[%clk 0:02:58.9]} 5. Nc3 {[%clk 0:02:57.2]}
5... O-O {[%clk 0:02:59.2]} 6. O-O {[%clk 0:02:57.9]} 6... d6 {[%clk 0:02:57.5]}
7. d4 {[%clk 0:02:58.3]} 7... Nbd7 {[%clk 0:02:55.7]} 8. b3 {[%clk 0:02:57.9]}
8... a6 {[%clk 0:02:54]} 9. Bb2 {[%clk 0:02:58.1]} 9... Qa5 {[%clk 0:02:53]} 10.
Qd2 {[%clk 0:02:56]} 10... Re8 {[%clk 0:02:51.4]} 11. Rfd1 {[%clk 0:02:54]}
11... Rb8 {[%clk 0:02:47.1]} 12. a3 {[%clk 0:02:51]} 12... b5 {[%clk 0:02:38.4]}
13. dxc5 {[%clk 0:02:50.1]} 13... dxc5 {[%clk 0:02:28.2]} 14. cxb5 {[%clk
0:02:48.1]} 14... axb5 {[%clk 0:02:27]} 15. a4 {[%clk 0:02:42.5]} 15... bxa4
{[%clk 0:02:07]} 16. Rxa4 {[%clk 0:02:41.8]} 16... Qc7 {[%clk 0:02:05.2]} 17.
Qc2 {[%clk 0:02:34]} 17... Bb7 {[%clk 0:01:57.2]} 18. Rh4 {[%clk 0:02:25.9]}
18... Bc6 {[%clk 0:01:45]} 19. Na4 {[%clk 0:02:21.9]} 19... Qb7 {[%clk
0:01:28.5]} 20. Nxc5 {[%clk 0:01:41.9]} 20... Nxc5 {[%clk 0:01:24.6]} 21. Qxc5
{[%clk 0:01:42.8]} 21... Bxf3 {[%clk 0:01:19.4]} 22. Bxf3 {[%clk 0:01:41.8]}
22... Qxb3 {[%clk 0:01:19.2]} 23. Rd2 {[%clk 0:01:15.4]} 23... Rbc8 {[%clk
0:00:36.7]} 24. Qa5 {[%clk 0:01:05.3]} 24... Rc2 {[%clk 0:00:35.4]} 25. Rxc2
{[%clk 0:01:02.7]} 25... Qxc2 {[%clk 0:00:36.3]} 26. Bd4 {[%clk 0:00:58.9]}
26... Qc1+ {[%clk 0:00:23.7]} 27. Kg2 {[%clk 0:00:59.1]} 27... h5 {[%clk
0:00:23.2]} 28. Qb5 {[%clk 0:00:51.8]} 28... Rc8 {[%clk 0:00:19.1]} 29. Be3
{[%clk 0:00:45.9]} 29... Qc7 {[%clk 0:00:16.2]} 30. Ra4 {[%clk 0:00:43.9]} 30...
Qd7 {[%clk 0:00:14.3]} 31. Qb3 {[%clk 0:00:40.3]} 31... e6 {[%clk 0:00:10.6]}
32. Ra7 {[%clk 0:00:38.9]} 32... Qd8 {[%clk 0:00:09]} 33. Qb7 {[%clk 0:00:37.9]}
33... Qe8 {[%clk 0:00:06.9]} 34. h3 {[%clk 0:00:23.4]} 34... Rb8 {[%clk
0:00:07.2]} 35. Qa6 {[%clk 0:00:22.8]} 35... Rc8 {[%clk 0:00:06.5]} 36. Bb7
{[%clk 0:00:20.1]} 36... Rd8 {[%clk 0:00:04.5]} 37. Bc6 {[%clk 0:00:19.8]} 37...
Qf8 {[%clk 0:00:02.9]} 38. Qb7 {[%clk 0:00:20.3]} 38... Nd5 {[%clk 0:00:02.1]}
39. Bc5 {[%clk 0:00:19.6]} 39... Qxc5 {[%clk 0:00:02]} 40. Qxf7+ {[%clk
0:00:19.5]} 40... Kh8 {[%clk 0:00:02]} 41. Qxg7# {[%clk 0:00:20.4]} 1-0

[Event "Early-Titled-Tuesday-Blitz-September-12-2023"]
[Site "Chess.com"]
[Date "2023.09.12"]
[Round "1"]
[White "Rsnr"]
[Black "Zarinur"]
[Result "1-0"]
[WhiteElo "2916"]
[BlackElo "2504"]
[TimeControl "180+1"]
[EndTime "8:07:26 PDT"]
[Termination "Rsnr won by resignation"]

1. d4 {[%clk 0:02:56.6]} 1... Nf6 {[%clk 0:02:55.7]} 2. c4 {[%clk 0:02:56.7]}
2... e6 {[%clk 0:02:49.3]} 3. Nc3 {[%clk 0:02:56]} 3... Bb4 {[%clk 0:02:45.8]}
4. Qc2 {[%clk 0:02:55.9]} 4... Nc6 {[%clk 0:02:43.2]} 5. Nf3 {[%clk 0:02:53.7]}
5... d6 {[%clk 0:02:43.6]} 6. Bg5 {[%clk 0:02:48]} 6... h6 {[%clk 0:02:32]} 7.
Bh4 {[%clk 0:02:46.9]} 7... g5 {[%clk 0:02:23.4]} 8. Nxg5 {[%clk 0:02:42.7]}
8... hxg5 {[%clk 0:02:24.3]} 9. Bxg5 {[%clk 0:02:43.4]} 9... Bxc3+ {[%clk
0:02:20.4]} 10. bxc3 {[%clk 0:02:41.3]} 10... Rg8 {[%clk 0:02:12.6]} 11. h4
{[%clk 0:02:39.7]} 11... Rg6 {[%clk 0:02:05.7]} 12. e3 {[%clk 0:02:32.5]} 12...
Bd7 {[%clk 0:01:27.3]} 13. Bd3 {[%clk 0:02:31.8]} 13... Rg8 {[%clk 0:01:17.9]}
14. f4 {[%clk 0:02:14.1]} 14... Qe7 {[%clk 0:01:16.2]} 15. h5 {[%clk 0:02:13.9]}
15... O-O-O {[%clk 0:01:14]} 16. h6 {[%clk 0:02:14.1]} 16... Rxg5 {[%clk
0:01:07.5]} 17. fxg5 {[%clk 0:02:11.1]} 17... Ng4 {[%clk 0:01:08.2]} 18. h7
{[%clk 0:02:01.6]} 18... Rh8 {[%clk 0:01:00.3]} 19. Rh5 {[%clk 0:01:43.2]} 19...
Be8 {[%clk 0:00:59.6]} 20. Qe2 {[%clk 0:01:31.1]} 20... f5 {[%clk 0:00:57.4]}
21. gxf6 {[%clk 0:01:31]} 21... Nxf6 {[%clk 0:00:57.9]} 22. Rh2 {[%clk
0:01:13.2]} 22... Qg7 {[%clk 0:00:50.8]} 23. O-O-O {[%clk 0:01:12.3]} 23... Ne7
{[%clk 0:00:45.1]} 24. Rdh1 {[%clk 0:01:07.3]} 24... Bg6 {[%clk 0:00:44.7]} 25.
Bxg6 {[%clk 0:00:57.2]} 25... Nxg6 {[%clk 0:00:45.6]} 26. Qf3 {[%clk 0:00:35.2]}
26... Rxh7 {[%clk 0:00:38]} 27. Rxh7 {[%clk 0:00:35.6]} 27... Nxh7 {[%clk
0:00:38.9]} 28. Qh5 {[%clk 0:00:33.4]} 28... Nf6 {[%clk 0:00:38.4]} 29. Qh6
{[%clk 0:00:34]} 29... Qf7 {[%clk 0:00:35.7]} 30. Rf1 {[%clk 0:00:33.3]} 30...
Ng4 {[%clk 0:00:09.1]} 31. Rxf7 {[%clk 0:00:30.3]} 31... Nxh6 {[%clk 0:00:09.6]}
32. Rf6 {[%clk 0:00:30.6]} 32... Ng4 {[%clk 0:00:07]} 33. Rxg6 {[%clk
0:00:29.8]} 33... Nxe3 {[%clk 0:00:06.7]} 34. g4 {[%clk 0:00:21.6]} 34... Kd7
{[%clk 0:00:05.4]} 35. Rg7+ {[%clk 0:00:19.7]} 35... Kc6 {[%clk 0:00:04.6]} 36.
g5 {[%clk 0:00:19.8]} 36... Nxc4 {[%clk 0:00:04.6]} 37. g6 {[%clk 0:00:20.1]}
37... Ne3 {[%clk 0:00:03.7]} 38. Rf7 {[%clk 0:00:18.9]} 38... Ng4 {[%clk
0:00:02.6]} 39. g7 {[%clk 0:00:18.7]} 39... Nh6 {[%clk 0:00:03.2]} 40. Rf6
{[%clk 0:00:18.8]} 40... Kd5 {[%clk 0:00:03.5]} 41. Rxh6 {[%clk 0:00:18.7]} 1-0

[Event "Early-Titled-Tuesday-Blitz-September-12-2023"]
[Site "Chess.com"]
[Date "2023.09.12"]
[Round "1"]
[White "RodTwinkz"]
[Black "krucki03"]
[Result "1-0"]
[WhiteElo "2705"]
[BlackElo "2400"]
[TimeControl "180+1"]
[EndTime "8:07:26 PDT"]
[Termination "RodTwinkz won by resignation"]

1. e4 {[%clk 0:03:00.9]} 1... c5 {[%clk 0:03:00.1]} 2. Nc3 {[%clk 0:03:00]} 2...
a6 {[%clk 0:02:58]} 3. a4 {[%clk 0:02:59.6]} 3... Nc6 {[%clk 0:02:57.9]} 4. f4
{[%clk 0:02:59.8]} 4... g6 {[%clk 0:02:57.5]} 5. Nf3 {[%clk 0:03:00.1]} 5... Bg7
{[%clk 0:02:58]} 6. Bc4 {[%clk 0:02:57.9]} 6... e6 {[%clk 0:02:58.2]} 7. e5
{[%clk 0:02:57.9]} 7... Nge7 {[%clk 0:02:57.9]} 8. Ne4 {[%clk 0:02:57.7]} 8...
O-O {[%clk 0:02:57.9]} 9. Nxc5 {[%clk 0:02:56.2]} 9... d6 {[%clk 0:02:54.8]} 10.
Nd3 {[%clk 0:02:49.6]} 10... dxe5 {[%clk 0:02:46.9]} 11. fxe5 {[%clk 0:02:50.5]}
11... Rb8 {[%clk 0:02:42.6]} 12. O-O {[%clk 0:02:31.2]} 12... b5 {[%clk
0:02:35.8]} 13. axb5 {[%clk 0:02:30.5]} 13... axb5 {[%clk 0:02:36.7]} 14. Bb3
{[%clk 0:02:30.8]} 14... Nd4 {[%clk 0:02:30.7]} 15. Nxd4 {[%clk 0:02:24.8]}
15... Qxd4+ {[%clk 0:02:31.6]} 16. Kh1 {[%clk 0:02:24.3]} 16... Nc6 {[%clk
0:02:31.6]} 17. Rf4 {[%clk 0:02:19]} 17... Qd8 {[%clk 0:02:22.2]} 18. Qg1 {[%clk
0:02:01.4]} 18... Nxe5 {[%clk 0:02:14.8]} 19. Nxe5 {[%clk 0:02:00.7]} 19... Bxe5
{[%clk 0:02:15.7]} 20. Re4 {[%clk 0:01:50.1]} 20... Bg7 {[%clk 0:02:00.4]} 21.
d3 {[%clk 0:01:48.2]} 21... Bb7 {[%clk 0:02:00.3]} 22. Re2 {[%clk 0:01:48]}
22... Qh4 {[%clk 0:01:56.5]} 23. Qe1 {[%clk 0:01:39.6]} 23... Qh5 {[%clk
0:01:55.1]} 24. c3 {[%clk 0:01:31.3]} 24... Rfd8 {[%clk 0:01:48.2]} 25. d4
{[%clk 0:01:31.2]} 25... b4 {[%clk 0:01:48.2]} 26. Bf4 {[%clk 0:01:27]} 26...
Rbc8 {[%clk 0:01:40.5]} 27. Ra7 {[%clk 0:01:20.7]} 27... Bd5 {[%clk 0:01:30.8]}
28. Bd1 {[%clk 0:01:10.4]} 28... Qf5 {[%clk 0:00:52.7]} 29. Be5 {[%clk 0:01:01]}
29... bxc3 {[%clk 0:00:47.3]} 30. bxc3 {[%clk 0:00:56.4]} 30... Bf8 {[%clk
0:00:29.3]} 31. Rf2 {[%clk 0:00:52.5]} 31... Qh3 {[%clk 0:00:26.6]} 32. Bf3
{[%clk 0:00:40.8]} 32... Bxf3 {[%clk 0:00:22]} 33. Rxf3 {[%clk 0:00:41.7]} 33...
Qg4 {[%clk 0:00:12.4]} 34. h3 {[%clk 0:00:39.5]} 34... Qh5 {[%clk 0:00:08.9]}
35. Rfxf7 {[%clk 0:00:34.9]} 35... Ra8 {[%clk 0:00:04.6]} 36. Qf1 {[%clk
0:00:30.2]} 36... Rxa7 {[%clk 0:00:03.2]} 37. Rxa7 {[%clk 0:00:31.1]} 37... Qf5
{[%clk 0:00:02.3]} 38. Qxf5 {[%clk 0:00:29.7]} 38... gxf5 {[%clk 0:00:02.5]} 39.
c4 {[%clk 0:00:30.2]} 39... Rc8 {[%clk 0:00:02.9]} 40. c5 {[%clk 0:00:30.4]}
40... Bxc5 {[%clk 0:00:02.8]} 41. dxc5 {[%clk 0:00:30]} 41... Rxc5 {[%clk
0:00:03.7]} 42. Bf6 {[%clk 0:00:30.4]} 42... f4 {[%clk 0:00:01.6]} 43. Kh2
{[%clk 0:00:28.2]} 43... Re5 {[%clk 0:00:01.2]} 44. Bxe5 {[%clk 0:00:27.7]} 1-0

[Event "Early-Titled-Tuesday-Blitz-September-12-2023"]
[Site "Chess.com"]
[Date "2023.09.12"]
[Round "1"]
[White "Srisshhhtea"]
[Black "econpower"]
[Result "0-1"]
[WhiteElo "2413"]
[BlackElo "2733"]
[TimeControl "180+1"]
[EndTime "8:07:27 PDT"]
[Termination "econpower won by resignation"]

1. e4 {[%clk 0:03:00.9]} 1... c5 {[%clk 0:02:59.7]} 2. Nf3 {[%clk 0:03:00]} 2...
Nc6 {[%clk 0:02:59.4]} 3. d4 {[%clk 0:03:00.1]} 3... cxd4 {[%clk 0:02:59.1]} 4.
Nxd4 {[%clk 0:03:01]} 4... Qb6 {[%clk 0:02:59.8]} 5. Nb3 {[%clk 0:03:00]} 5...
Nf6 {[%clk 0:02:59.8]} 6. Nc3 {[%clk 0:02:57.1]} 6... e6 {[%clk 0:02:59.7]} 7.
Be3 {[%clk 0:02:56.5]} 7... Qc7 {[%clk 0:02:59.5]} 8. Nb5 {[%clk 0:02:50.9]}
8... Qb8 {[%clk 0:02:55.7]} 9. Bd3 {[%clk 0:02:47.8]} 9... a6 {[%clk 0:02:52.5]}
10. N5d4 {[%clk 0:02:47.6]} 10... Be7 {[%clk 0:02:38.2]} 11. O-O {[%clk
0:02:47.1]} 11... O-O {[%clk 0:02:38]} 12. Nxc6 {[%clk 0:02:46.3]} 12... bxc6
{[%clk 0:02:33.9]} 13. c4 {[%clk 0:02:44.3]} 13... d6 {[%clk 0:02:33.1]} 14. f4
{[%clk 0:02:43.6]} 14... Qc7 {[%clk 0:02:29.6]} 15. Kh1 {[%clk 0:02:39.5]} 15...
a5 {[%clk 0:02:29.5]} 16. Nd4 {[%clk 0:02:28.1]} 16... Nd7 {[%clk 0:02:28.3]}
17. Nf3 {[%clk 0:02:23]} 17... Re8 {[%clk 0:02:26.9]} 18. Qe1 {[%clk 0:02:21.8]}
18... Rb8 {[%clk 0:02:25.8]} 19. Qf2 {[%clk 0:02:21.5]} 19... Bf8 {[%clk
0:02:22]} 20. Rad1 {[%clk 0:02:20.1]} 20... a4 {[%clk 0:02:09.5]} 21. e5 {[%clk
0:02:19.7]} 21... g6 {[%clk 0:01:57.8]} 22. Qh4 {[%clk 0:02:13.9]} 22... d5
{[%clk 0:01:52.9]} 23. Bc1 {[%clk 0:01:55.3]} 23... Bg7 {[%clk 0:01:50.8]} 24.
Ng5 {[%clk 0:01:49.1]} 24... Nf8 {[%clk 0:01:50.3]} 25. Be3 {[%clk 0:01:31.8]}
25... Ba6 {[%clk 0:01:49.5]} 26. Bc5 {[%clk 0:01:31.4]} 26... h6 {[%clk
0:01:48.6]} 27. Nf3 {[%clk 0:01:29.7]} 27... Rxb2 {[%clk 0:01:45.7]} 28. Bd6
{[%clk 0:01:29.2]} 28... Qb7 {[%clk 0:01:43.2]} 29. f5 {[%clk 0:01:22.6]} 29...
exf5 {[%clk 0:01:42.7]} 30. cxd5 {[%clk 0:01:21.6]} 30... cxd5 {[%clk
0:01:40.6]} 31. Qg3 {[%clk 0:01:13.5]} 31... Bxd3 {[%clk 0:01:35.1]} 32. Rxd3
{[%clk 0:01:14.4]} 32... Rxa2 {[%clk 0:01:34.4]} 33. Nd4 {[%clk 0:01:12.9]}
33... Ne6 {[%clk 0:01:26.4]} 34. Nxe6 {[%clk 0:01:01.9]} 34... Rxe6 {[%clk
0:01:25.7]} 35. Rc1 {[%clk 0:01:00.3]} 35... Rb2 {[%clk 0:01:22.8]} 36. Rdc3
{[%clk 0:00:57.1]} 36... Rb1 {[%clk 0:01:22.5]} 37. Qe1 {[%clk 0:00:56.4]} 37...
Rxc1 {[%clk 0:01:21.8]} 38. Qxc1 {[%clk 0:00:57.3]} 38... Bxe5 {[%clk
0:01:15.7]} 39. Rc7 {[%clk 0:00:16.3]} 39... Qb5 {[%clk 0:00:54.4]} 40. Bxe5
{[%clk 0:00:12.2]} 40... Rxe5 {[%clk 0:00:52.7]} 41. h3 {[%clk 0:00:12.5]} 41...
Qe8 {[%clk 0:00:28.1]} 42. Rc8 {[%clk 0:00:08.2]} 42... Re1+ {[%clk 0:00:28]}
43. Qxe1 {[%clk 0:00:07.6]} 43... Qxc8 {[%clk 0:00:28.2]} 44. Qa5 {[%clk
0:00:07.7]} 44... Qd7 {[%clk 0:00:27]} 45. Qa8+ {[%clk 0:00:06.4]} 45... Kh7
{[%clk 0:00:26.1]} 46. Qa5 {[%clk 0:00:07.3]} 0-1